fUST/lending_fUST_20250905
["ID","MTS","AMOUNT","RATE_DAILY","PERIOD"]
[383623847,1757045447017,-480.0,0.0001497,2]
[383623849,1757045447027,-480.0,0.0001497,2]
[383623851,1757045447036,-480.0,0.0001497,2]
[383623853,1757045447045,-605.40758822,0.0001497,2]
[383623855,1757045447055,-480.0,0.0001497,2]
[383623857,1757045447064,-480.0,0.0001497,2]
[383623859,1757045447075,-480.0,0.0001497,2]
[383623861,1757045447084,-480.0,0.0001497,2]
[383623863,1757045447093,-480.0,0.0001497,2]
[383623865,1757045447102,-485.96577403,0.0001497,2]
[383623867,1757045447112,-480.0,0.0001497,2]
[383623869,1757045447121,-480.0,0.0001497,2]
[383623871,1757045447131,-480.0,0.0001497,2]
[383623873,1757045447140,-480.0,0.0001497,2]
[383623875,1757045447148,-480.0,0.0001497,2]
[383623877,1757045447157,-480.0,0.0001497,2]
[383623879,1757045447166,-878.16,0.0001497,2]
[383623881,1757045447175,-341.19013929,0.0001497,2]
[383623883,1757045447184,-216.26,0.0001497,2]
[383623885,1757045447193,-218.63110642,0.0001497,2]
[383623887,1757045447202,-480.0,0.0001497,2]
[383623889,1757045447211,-483.22676294,0.0001497,2]
[383623891,1757045447220,-647.04,0.0001497,2]
[383623893,1757045447230,-480.0,0.0001497,2]
[383623895,1757045447240,-500.0,0.00014971,2]
[383623897,1757045447249,-480.0,0.00014971,2]
[383623899,1757045447259,-480.0,0.00014971,2]
[383623901,1757045447268,-480.0,0.00014971,2]
[383623903,1757045447277,-494.28825339,0.00014971,2]
[383623905,1757045447287,-480.0,0.00014971,2]
[383623907,1757045447297,-480.0,0.00014971,2]
[383623909,1757045447306,-480.0,0.00014971,2]
[383623911,1757045447315,-480.0,0.00014971,2]
[383623913,1757045447325,-480.0,0.00014971,2]
[383623915,1757045447333,-480.0,0.00014971,2]
[383623917,1757045447343,-480.0,0.00014971,2]
[383623919,1757045447352,-489.88730758,0.00014971,2]
[383623921,1757045447361,-480.0,0.00014971,2]
[383623923,1757045447371,-484.10302722,0.00014971,2]
[383623925,1757045447381,-480.0,0.00014971,2]
[383623926,1757045447390,-480.0,0.00014971,2]
[383623929,1757045447400,-480.0,0.00014971,2]
[383623931,1757045447410,-480.0,0.00014971,2]
[383623933,1757045447419,-480.0,0.00014971,2]
[383623934,1757045447430,-1095.67,0.00014971,2]
[383623937,1757045447441,-480.0,0.00014971,2]
[383623939,1757045447450,-536.98,0.00014971,2]
[383623941,1757045447459,-480.0,0.00014971,2]
[383623943,1757045447470,-480.0,0.00014971,2]
[383623944,1757045447480,-480.0,0.00014971,2]
[383623947,1757045447489,-480.0,0.00014971,2]
[383623948,1757045447498,-480.0,0.00014971,2]
[383623950,1757045447507,-2740.37,0.00014971,2]
[383623952,1757045447516,-792.76484105,0.00014971,2]
[383623955,1757045447529,-663.60515895,0.00014971,2]
[383623957,1757045447538,-485.37297978,0.00014971,2]
[383623959,1757045447551,-537.25,0.00014971,2]
[383623961,1757045447561,-734.37263985,0.00014971,2]
[383623979,1757045447733,-103.43736015,0.00014971,2]
[383623981,1757045447742,-480.0,0.00014971,2]
[383623983,1757045447752,-480.0,0.00014971,2]
[383623985,1757045447761,-1476.22,0.00014971,2]
[383623987,1757045447770,-1938.77,0.00014971,2]
[383623989,1757045447780,-480.0,0.00014971,2]
[383623991,1757045447789,-480.0,0.00014971,2]
[383623993,1757045447798,-480.0,0.00014971,2]
[383623995,1757045447808,-980.9,0.00014971,2]
[383623997,1757045447817,-1491.19515758,0.00014971,2]
[383624000,1757045447831,-5800.94484242,0.00014971,2]
[383624001,1757045447840,-480.0,0.00014971,2]
[383624003,1757045447849,-480.0,0.00014971,2]
[383624005,1757045447858,-289.35979196,0.00014971,2]
[383624017,1757045447958,-928.80427841,0.00014549,2]
[383624019,1757045447967,-154.54147359,0.00014692,2]
[383624021,1757045447979,-28190.46581086,0.00014692,2]
[383624023,1757045447988,-190.64020804,0.00014971,2]
[383624025,1757045447997,-480.0,0.00014971,2]
[383624027,1757045448007,-321.09482204,0.00014971,2]
[383624029,1757045448019,-158.90517796,0.00014971,2]
[383624031,1757045448029,-1093.33,0.00014971,2]
[383624033,1757045448039,-1434.07,0.00014971,2]
[383624035,1757045448049,-480.0,0.00015069,2]
[383624037,1757045448059,-480.0,0.00015069,2]
[383624039,1757045448068,-480.0,0.00015069,2]
[383624041,1757045448077,-480.0,0.00015069,2]
[383624043,1757045448087,-491.71562645,0.00015069,2]
[383624045,1757045448097,-1153.89,0.00015069,2]
[383624047,1757045448106,-480.0,0.00015069,2]
[383624049,1757045448116,-480.0,0.00015069,2]
[383624051,1757045448126,-480.0,0.00015069,2]
[383624053,1757045448135,-428.62476643,0.00015069,2]
[383624055,1757045448145,-480.0,0.00015069,2]
[383624057,1757045448154,-497.24,0.00015069,2]
[383624059,1757045448164,-480.0,0.00015069,2]
[383624061,1757045448174,-480.0,0.00015069,2]
[383624063,1757045448183,-480.0,0.00015069,2]
[383624065,1757045448192,-480.0,0.00015069,2]
[383624067,1757045448202,-480.0,0.00015069,2]
[383624069,1757045448211,-522.402622,0.00015069,2]
[383624071,1757045448222,-483.57290136,0.00015069,2]
[383624073,1757045448231,-480.0,0.00015069,2]
[383624075,1757045448240,-480.0,0.00015069,2]
[383624077,1757045448249,-480.0,0.00015069,2]
[383624079,1757045448259,-480.0,0.00015069,2]
[383624081,1757045448269,-480.0,0.00015069,2]
[383624083,1757045448279,-482.40299777,0.00015069,2]
[383624085,1757045448288,-480.0,0.00015069,2]
[383624087,1757045448297,-480.0,0.00015069,2]
[383624088,1757045448307,-480.0,0.00015069,2]
[383624090,1757045448316,-480.0,0.00015069,2]
[383624092,1757045448325,-480.0,0.00015069,2]
[383624094,1757045448335,-483.03788247,0.00015069,2]
[383624096,1757045448344,-480.0,0.00015069,2]
[383624098,1757045448353,-480.0,0.00015069,2]
[383624100,1757045448363,-495.25578842,0.00015069,2]
[383624102,1757045448372,-480.0,0.00015069,2]
[383624104,1757045448382,-480.0,0.00015069,2]
[383624106,1757045448391,-480.0,0.00015069,2]
[383624108,1757045448400,-480.0,0.00015069,2]
[383624110,1757045448409,-480.0,0.00015069,2]
[383624112,1757045448419,-480.0,0.00015069,2]
[383624114,1757045448428,-480.0,0.0001507,2]
[383624125,1757045448437,-480.0,0.0001507,2]
[383624128,1757045448540,-589.65276301,0.0001507,2]
[383624130,1757045448555,-480.0,0.0001507,2]
[383624132,1757045448565,-480.0,0.0001507,2]
[383624134,1757045448575,-480.0,0.0001507,2]
[383624136,1757045448585,-554.73,0.0001507,2]
[383624138,1757045448594,-480.0,0.0001507,2]
[383624140,1757045448604,-480.0,0.0001507,2]
[383624142,1757045448613,-480.0,0.0001507,2]
[383624144,1757045448622,-480.0,0.0001507,2]
[383624146,1757045448631,-480.0,0.0001507,2]
[383624148,1757045448642,-482.67695008,0.0001507,2]
[383624150,1757045448651,-480.0,0.0001507,2]
[383624152,1757045448660,-480.0,0.0001507,2]
[383624154,1757045448670,-480.0,0.0001507,2]
[383624156,1757045448680,-480.0,0.0001507,2]
[383624158,1757045448689,-480.0,0.0001507,2]
[383624160,1757045448699,-480.0,0.0001507,2]
[383624162,1757045448709,-157.0,0.00015071,2]
[383624164,1757045448719,-157.0,0.00015071,2]
[383624166,1757045448728,-157.0,0.00015071,2]
[383624168,1757045448737,-175.89141252,0.00015071,2]
[383624170,1757045448747,-500.0,0.00015071,2]
[383624172,1757045448756,-500.0,0.00015071,2]
[383624174,1757045448766,-157.0,0.00015071,2]
[383624176,1757045448776,-516.12680205,0.00015071,2]
[383624178,1757045448785,-157.0,0.00015071,2]
[383624180,1757045448795,-296.0,0.00015071,2]
[383624182,1757045448805,-500.0,0.00015071,2]
[383624184,1757045448814,-157.0,0.00015071,2]
[383624186,1757045448824,-157.0,0.00015071,2]
[383624188,1757045448833,-157.0,0.00015071,2]
[383624190,1757045448843,-480.0,0.00015071,2]
[383624192,1757045448852,-185.819,0.00015074,2]
[383624194,1757045448863,-1588.30071646,0.00015139,2]
[383624196,1757045448872,-300.0,0.00015217,2]
[383624198,1757045448882,-300.0,0.00015217,2]
[383624200,1757045448892,-300.0,0.00015217,2]
[383624202,1757045448901,-300.0,0.00015217,2]
[383624204,1757045448912,-300.0,0.00015217,2]
[383624206,1757045448921,-300.0,0.00015217,2]
[383624208,1757045448930,-300.0,0.00015217,2]
[383624210,1757045448940,-300.0,0.00015217,2]
[383624212,1757045448949,-300.0,0.00015217,2]
[383624214,1757045448959,-300.0,0.00015217,2]
[383624216,1757045448968,-300.0,0.00015217,2]
[383624218,1757045448978,-300.0,0.00015217,2]
[383624220,1757045448987,-300.0,0.00015217,2]
[383624223,1757045448998,-300.0,0.00015217,2]
[383624224,1757045449007,-300.0,0.00015217,2]
[383624227,1757045449017,-600.0,0.00015217,2]
[383624229,1757045449027,-1000.0,0.00015221,2]
[383624231,1757045449036,-517.98839524,0.00015241,2]
[383624233,1757045449046,-480.0,0.00015241,2]
[383624235,1757045449055,-480.0,0.00015241,2]
[383624236,1757045449065,-480.0,0.00015241,2]
[383624239,1757045449075,-833.6,0.00015241,2]
[383624241,1757045449086,-968.22,0.00015241,2]
[383624243,1757045449096,-480.0,0.00015241,2]
[383624244,1757045449105,-1923.43,0.00015241,2]
[383624247,1757045449115,-308.59427998,0.00015241,2]
[383624249,1757045449125,-260.13902846,0.00015241,2]
[383624254,1757045449167,-219.86097154,0.00015241,2]
[383624256,1757045449177,-427.81902846,0.00015241,2]
[383624277,1757045449366,-52.18097154,0.00015241,2]
[383624279,1757045449376,-480.0,0.00015241,2]
[383624281,1757045449386,-598.8,0.00015241,2]
[383624283,1757045449395,-480.0,0.00015241,2]
[383624285,1757045449405,-480.0,0.00015241,2]
[383624287,1757045449414,-794.11,0.00015243,2]
[383624289,1757045449425,-1119.46,0.00015243,2]
[383624291,1757045449434,-1263.89,0.00015243,2]
[383624293,1757045449443,-480.0,0.00015243,2]
[383624295,1757045449452,-527.6,0.00015243,2]
[383624297,1757045449461,-856.72,0.00015243,2]
[383624299,1757045449471,-480.0,0.00015243,2]
[383624301,1757045449480,-480.0,0.00015243,2]
[383624303,1757045449491,-213.73838511,0.00015243,2]
[383624305,1757045449502,-266.26161489,0.00015243,2]
[383624307,1757045449513,-440.86027311,0.00015243,2]
[383626955,1757045506117,200.0,0.00019949,20]
[383626956,1757045506139,250.0,0.00019949,20]
[383626957,1757045506162,550.0,0.00019949,20]
[383626958,1757045645949,251.25352848,0.00027397,120]
[383626959,1757045752204,233.316226,0.00013699,2]
[383626960,1757045842983,4576.46633622,0.00029389,120]
[383626987,1757046132941,20114.0312725,0.00013592,2]
[383626988,1757046294716,1000.0,0.0001359,2]
[383626990,1757046313878,727.299457,0.00013699,2]
[383626994,1757046507402,519.86,0.00012329,2]
[383626997,1757046518054,433.22,0.00012329,2]
[383626998,1757046528458,361.02,0.00012329,2]
[383626999,1757046538866,300.85,0.00012329,2]
[383627000,1757046549280,250.71,0.00012329,2]
[383627001,1757046549713,1371.3508864,0.00013591,2]
[383627002,1757046559689,208.92,0.00012329,2]
[383627003,1757046580275,174.1,0.00012329,2]
[383627004,1757046584988,156.0,0.00027397,120]
[383627005,1757046587602,201.0,0.00022,120]
[383627006,1757046590671,870.53,0.00012329,2]
[383627075,1757046633179,-441.23961063,0.00014485,2]
[383627077,1757046633190,-5135.76709812,0.00014493,2]
[383627079,1757046633200,-300.0,0.00014572,2]
[383627081,1757046633209,-1200.0,0.00014572,2]
[383627083,1757046633219,-500.0,0.00014573,2]
[383627085,1757046633228,-274.78987739,0.00014573,2]
[383627087,1757046633238,-500.0,0.00014573,2]
[383627088,1757046633248,-500.0,0.00014573,2]
[383627090,1757046633257,-1200.0,0.00014583,2]
[383627092,1757046633267,-480.0,0.00014583,2]
[383627094,1757046633276,-480.0,0.00014583,2]
[383627095,1757046633285,-480.0,0.00014583,2]
[383627096,1757046633295,-480.0,0.00014583,2]
[383627097,1757046633304,-480.0,0.00014584,2]
[383627098,1757046633313,-480.0,0.00014584,2]
[383627099,1757046633323,-480.0,0.00014584,2]
[383627100,1757046633332,-481.9284001,0.00014584,2]
[383627101,1757046633341,-480.0,0.00014584,2]
[383627103,1757046633351,-480.0,0.00014584,2]
[383627104,1757046633360,-480.0,0.00014584,2]
[383627105,1757046633370,-986.98,0.00014584,2]
[383627106,1757046633379,-1131.75,0.00014584,2]
[383627107,1757046633388,-480.0,0.00014584,2]
[383627109,1757046633398,-480.0,0.00014584,2]
[383627111,1757046633407,-2174.41,0.00014584,2]
[383627113,1757046633416,-480.0,0.00014584,2]
[383627115,1757046633426,-480.0,0.00014584,2]
[383627118,1757046633435,-480.0,0.00014584,2]
[383627119,1757046633444,-551.21201223,0.00014584,2]
[383627121,1757046633454,-480.0,0.00014584,2]
[383627123,1757046633464,-490.98,0.00014584,2]
[383627125,1757046633473,-484.37568336,0.00014584,2]
[383627127,1757046633483,-480.0,0.00014584,2]
[383627130,1757046633492,-480.0,0.00014584,2]
[383627132,1757046633502,-733.85,0.00014584,2]
[383627134,1757046633511,-510.45,0.00014584,2]
[383627135,1757046633522,-480.0,0.00014584,2]
[383627137,1757046633532,-44000.91672017,0.00014584,2]
[383627140,1757046633541,-250.0,0.00014585,2]
[383627141,1757046633551,-250.0,0.00014585,2]
[383627143,1757046633560,-250.0,0.00014585,2]
[383627145,1757046633569,-250.0,0.00014585,2]
[383627147,1757046633579,-250.0,0.00014585,2]
[383627149,1757046633588,-250.0,0.00014585,2]
[383627151,1757046633597,-250.0,0.00014585,2]
[383627153,1757046633607,-250.0,0.00014585,2]
[383627155,1757046633616,-187.78006525,0.00014585,2]
[383627157,1757046633626,-263.44403176,0.00014585,2]
[383627159,1757046633635,-480.0,0.0001459,2]
[383627161,1757046633645,-480.0,0.0001459,2]
[383627163,1757046633655,-1129.78,0.0001459,2]
[383627165,1757046633664,-1685.24,0.0001459,2]
[383627167,1757046633674,-480.0,0.0001459,2]
[383627169,1757046633682,-480.0,0.0001459,2]
[383627171,1757046633691,-480.0,0.0001459,2]
[383627173,1757046633701,-1320.97,0.0001459,2]
[383627175,1757046633709,-597.23,0.0001459,2]
[383627177,1757046633719,-480.0,0.0001459,2]
[383627179,1757046633727,-991.89,0.0001459,2]
[383627181,1757046633737,-480.0,0.0001459,2]
[383627182,1757046633746,-480.0,0.0001459,2]
[383627183,1757046633755,-480.0,0.0001459,2]
[383627184,1757046633765,-480.0,0.0001459,2]
[383627186,1757046633774,-480.0,0.0001459,2]
[383627188,1757046633784,-480.0,0.0001459,2]
[383627190,1757046633793,-610.35,0.0001459,2]
[383627192,1757046633802,-480.0,0.0001459,2]
[383627194,1757046633811,-480.0,0.0001459,2]
[383627195,1757046633820,-480.0,0.0001459,2]
[383627196,1757046633830,-480.0,0.0001459,2]
[383627198,1757046633839,-500.0,0.0001459,2]
[383627200,1757046633848,-500.0,0.0001459,2]
[383627202,1757046633857,-163.28891011,0.0001459,2]
[383627204,1757046633867,-500.0,0.0001459,2]
[383627206,1757046633876,-500.0,0.0001459,2]
[383627208,1757046633885,-294.80758621,0.0001459,2]
[383627210,1757046633895,-500.0,0.0001459,2]
[383627212,1757046633904,-500.0,0.0001459,2]
[383627214,1757046633914,-500.0,0.0001459,2]
[383627216,1757046633923,-500.0,0.0001459,2]
[383627218,1757046633933,-621.60421152,0.0001459,2]
[383627220,1757046633942,-500.0,0.0001459,2]
[383627222,1757046633951,-339.84092591,0.0001459,2]
[383627224,1757046633961,-500.0,0.0001459,2]
[383627226,1757046633970,-500.0,0.0001459,2]
[383627228,1757046633980,-500.0,0.0001459,2]
[383627230,1757046633989,-500.0,0.0001459,2]
[383627232,1757046633999,-500.0,0.0001459,2]
[383627234,1757046634008,-500.0,0.0001459,2]
[383627235,1757046634017,-500.0,0.0001459,2]
[383627237,1757046634027,-500.0,0.0001459,2]
[383627239,1757046634036,-500.0,0.0001459,2]
[383627241,1757046634045,-309.99562758,0.0001459,2]
[383627243,1757046634054,-500.0,0.0001459,2]
[383627245,1757046634064,-282.34125428,0.0001459,2]
[383627247,1757046634073,-500.0,0.0001459,2]
[383627249,1757046634083,-207.78966634,0.0001459,2]
[383627251,1757046634092,-284.44440158,0.0001459,2]
[383627253,1757046634101,-500.0,0.0001459,2]
[383627255,1757046634111,-500.0,0.0001459,2]
[383627257,1757046634120,-500.0,0.0001459,2]
[383627259,1757046634130,-500.0,0.0001459,2]
[383627261,1757046634139,-500.0,0.0001459,2]
[383627263,1757046634148,-500.0,0.0001459,2]
[383627265,1757046634157,-500.0,0.0001459,2]
[383627267,1757046634167,-500.0,0.0001459,2]
[383627269,1757046634177,-500.0,0.0001459,2]
[383627271,1757046634186,-500.0,0.0001459,2]
[383627273,1757046634196,-500.0,0.0001459,2]
[383627275,1757046634205,-500.0,0.0001459,2]
[383627277,1757046634215,-500.0,0.0001459,2]
[383627279,1757046634226,-500.0,0.0001459,2]
[383627281,1757046634236,-500.0,0.0001459,2]
[383627283,1757046634245,-500.0,0.0001459,2]
[383627285,1757046634255,-500.0,0.0001459,2]
[383627287,1757046634264,-500.0,0.0001459,2]
[383627289,1757046634273,-500.0,0.0001459,2]
[383627291,1757046634283,-500.0,0.0001459,2]
[383627293,1757046634292,-500.0,0.0001459,2]
[383627295,1757046634301,-500.0,0.0001459,2]
[383627297,1757046634311,-500.0,0.0001459,2]
[383627299,1757046634320,-500.0,0.0001459,2]
[383627301,1757046634329,-500.0,0.0001459,2]
[383627303,1757046634338,-500.0,0.0001459,2]
[383627305,1757046634347,-500.0,0.0001459,2]
[383627307,1757046634357,-500.0,0.0001459,2]
[383627309,1757046634366,-500.0,0.0001459,2]
[383627311,1757046634377,-500.0,0.0001459,2]
[383627313,1757046634386,-500.0,0.0001459,2]
[383627314,1757046634395,-572.23,0.0001459,2]
[383627316,1757046634404,-312.77237701,0.0001459,2]
[383627319,1757046634414,-480.0,0.0001459,2]
[383627320,1757046634423,-480.0,0.0001459,2]
[383627322,1757046634432,-500.0,0.0001459,2]
[383627324,1757046634441,-500.0,0.0001459,2]
[383627327,1757046634455,-469.600191,0.0001459,2]
[383627329,1757046634464,-500.0,0.0001459,2]
[383627331,1757046634474,-500.0,0.0001459,2]
[383627333,1757046634483,-500.0,0.0001459,2]
[383627335,1757046634493,-500.0,0.0001459,2]
[383627337,1757046634503,-500.0,0.0001459,2]
[383627339,1757046634512,-500.0,0.0001459,2]
[383627341,1757046634525,-500.0,0.0001459,2]
[383627343,1757046634535,-500.0,0.0001459,2]
[383627345,1757046634544,-500.0,0.0001459,2]
[383627347,1757046634553,-500.0,0.0001459,2]
[383627349,1757046634563,-500.0,0.0001459,2]
[383627351,1757046634572,-500.0,0.0001459,2]
[383627353,1757046634582,-500.0,0.0001459,2]
[383627355,1757046634591,-500.0,0.0001459,2]
[383627357,1757046634603,-228.44444016,0.0001459,2]
[383627359,1757046634612,-480.0,0.0001459,2]
[383627361,1757046634622,-480.0,0.0001459,2]
[383627363,1757046634631,-540.45,0.0001459,2]
[383627365,1757046634640,-599.23,0.0001459,2]
[383627367,1757046634649,-480.0,0.0001459,2]
[383627369,1757046634659,-697.98,0.0001459,2]
[383627371,1757046634668,-480.82886849,0.0001459,2]
[383627373,1757046634678,-480.0,0.0001459,2]
[383627375,1757046634687,-480.0,0.0001459,2]
[383627377,1757046634697,-480.0,0.0001459,2]
[383627379,1757046634706,-480.0,0.0001459,2]
[383627381,1757046634716,-511.66,0.0001459,2]
[383627383,1757046634726,-480.0,0.0001459,2]
[383627385,1757046634736,-480.0,0.0001459,2]
[383627387,1757046634746,-480.0,0.00014591,2]
[383627389,1757046634755,-480.0,0.00014591,2]
[383627391,1757046634764,-344.19,0.00014591,2]
[383627393,1757046634774,-480.0,0.00014591,2]
[383627395,1757046634784,-480.0,0.00014591,2]
[383627397,1757046634793,-480.0,0.00014591,2]
[383627399,1757046634802,-480.0,0.00014591,2]
[383627401,1757046634811,-480.0,0.00014591,2]
[383627403,1757046634820,-480.0,0.00014591,2]
[383627405,1757046634830,-482.28061398,0.00014591,2]
[383627407,1757046634840,-480.0,0.00014591,2]
[383627409,1757046634849,-483.75795343,0.00014591,2]
[383627411,1757046634858,-480.0,0.00014591,2]
[383627413,1757046634867,-480.0,0.00014591,2]
[383627415,1757046634877,-480.0,0.00014591,2]
[383627417,1757046634887,-480.0,0.00014591,2]
[383627419,1757046634897,-480.0,0.00014591,2]
[383627420,1757046634906,-480.0,0.00014591,2]
[383627422,1757046634915,-466.92913779,0.00014591,2]
[383627424,1757046634925,-480.0,0.00014591,2]
[383627426,1757046634934,-480.0,0.00014591,2]
[383627428,1757046634945,-480.0,0.00014591,2]
[383627430,1757046634955,-480.0,0.00014591,2]
[383627431,1757046634964,-480.0,0.00014591,2]
[383627433,1757046634974,-481.08,0.00014591,2]
[383627435,1757046634983,-480.0,0.00014591,2]
[383627437,1757046634993,-480.0,0.00014591,2]
[383627439,1757046635003,-480.0,0.00014591,2]
[383627441,1757046635012,-480.0,0.00014591,2]
[383627443,1757046635021,-480.0,0.00014591,2]
[383627445,1757046635031,-480.0,0.00014591,2]
[383627447,1757046635040,-480.0,0.00014591,2]
[383627449,1757046635050,-480.0,0.00014591,2]
[383627451,1757046635059,-480.0,0.00014591,2]
[383627453,1757046635068,-480.0,0.00014591,2]
[383627455,1757046635077,-480.0,0.00014591,2]
[383627457,1757046635087,-480.0,0.00014591,2]
[383627459,1757046635096,-480.0,0.00014591,2]
[383627461,1757046635107,-480.0,0.00014591,2]
[383627463,1757046635121,-480.0,0.00014591,2]
[383627465,1757046635130,-555.5859267,0.00014591,2]
[383627467,1757046635139,-480.0,0.00014591,2]
[383627469,1757046635149,-480.0,0.00014591,2]
[383627471,1757046635158,-480.0,0.00014591,2]
[383627473,1757046635167,-480.0,0.00014591,2]
[383627475,1757046635176,-480.0,0.00014591,2]
[383627477,1757046635186,-480.0,0.00014591,2]
[383627479,1757046635195,-480.0,0.00014591,2]
[383627481,1757046635205,-494.19068074,0.00014591,2]
[383627483,1757046635214,-480.0,0.00014591,2]
[383627485,1757046635223,-480.0,0.00014591,2]
[383627487,1757046635234,-480.0,0.00014591,2]
[383627489,1757046635244,-480.0,0.00014591,2]
[383627491,1757046635253,-480.0,0.00014591,2]
[383627493,1757046635265,-480.0,0.00014591,2]
[383627495,1757046635274,-480.0,0.00014591,2]
[383627497,1757046635284,-480.0,0.00014591,2]
[383627499,1757046635293,-480.0,0.00014591,2]
[383627501,1757046635303,-480.0,0.00014591,2]
[383627503,1757046635312,-482.55560677,0.00014591,2]
[383627505,1757046635322,-480.0,0.00014591,2]
[383627507,1757046635332,-480.0,0.00014591,2]
[383627509,1757046635341,-483.88493841,0.00014591,2]
[383627510,1757046635350,-480.82620767,0.00014591,2]
[383627512,1757046635359,-480.0,0.00014591,2]
[383627514,1757046635368,-503.22,0.00014591,2]
[383627516,1757046635377,-480.0,0.00014591,2]
[383627518,1757046635387,-488.22,0.00014591,2]
[383627519,1757046635396,-151.0,0.00014591,2]
[383627520,1757046635406,-319.21746487,0.00014591,2]
[383627526,1757046635518,-151.0,0.00014591,2]
[383627527,1757046635530,-480.0,0.00014591,2]
[383627528,1757046635539,-3468.51,0.00014591,2]
[383627529,1757046635549,-154.860388,0.00014591,2]
[383627530,1757046635559,-481.426817,0.00014591,2]
[383627531,1757046635569,-480.0,0.00014591,2]
[383627532,1757046635578,-152.288766,0.00014591,2]
[383627533,1757046635589,-1845.99,0.00014591,2]
[383627534,1757046635599,-480.0,0.00014591,2]
[383627535,1757046635608,-518.12586182,0.00014591,2]
[383627536,1757046635618,-1014.59,0.00014591,2]
[383627537,1757046635627,-216.10322,0.00014591,2]
[383627538,1757046635637,-674.87,0.00014591,2]
[383627539,1757046635647,-480.0,0.00014591,2]
[383627540,1757046635656,-480.0,0.00014591,2]
[383627541,1757046635665,-480.0,0.00014591,2]
[383627542,1757046635675,-480.0,0.00014591,2]
[383627543,1757046635684,-480.0,0.00014591,2]
[383627544,1757046635695,-509.95,0.00014591,2]
[383627545,1757046635704,-480.0,0.00014591,2]
[383627546,1757046635713,-151.0,0.00014591,2]
[383627547,1757046635723,-2476.32,0.00014591,2]
[383627548,1757046635733,-480.0,0.00014591,2]
[383627549,1757046635743,-481.08782306,0.00014591,2]
[383627550,1757046635752,-480.0,0.00014591,2]
[383627551,1757046635761,-151.0,0.00014591,2]
[383627552,1757046635770,-151.0,0.00014591,2]
[383627553,1757046635779,-841.57,0.00014591,2]
[383627554,1757046635789,-2875.22,0.00014591,2]
[383627555,1757046635798,-530.44444197,0.00014591,2]
[383627556,1757046635811,-1348.78,0.00014591,2]
[383627557,1757046635821,-480.0,0.00014591,2]
[383627558,1757046635831,-268.99687246,0.00014591,2]
[383627559,1757046635840,-480.0,0.00014591,2]
[383627560,1757046635850,-7128.3,0.00014591,2]
[383627561,1757046635859,-480.0,0.00014591,2]
[383627562,1757046635868,-480.0,0.00014591,2]
[383627563,1757046635878,-480.0,0.00014591,2]
[383627564,1757046635887,-636.78,0.00014591,2]
[383627565,1757046635897,-480.0,0.00014591,2]
[383627566,1757046635906,-780.08,0.00014591,2]
[383627567,1757046635916,-480.0,0.00014591,2]
[383627568,1757046635925,-480.0,0.00014591,2]